bitfinex-derivatives/quotes_ETHF0:USTF0_20250309
["timestamp","ask_amount","ask_price","bid_price","bid_amount"]
[1741540994448,15.76374307,2030.8,2030.7,0.98505]
[1741540995651,13.63480706,2030.8,2030.7,4.98505]
[1741540995842,7.72495999,2030.8,2030.7,8.19285]
[1741540996041,7.72495999,2030.8,2030.7,8.68565]
[1741540996245,14.39197683,2030.8,2030.6,0.98509]
[1741540996440,3.2078,2030.7,2030.2,3.2078]
[1741540996744,3.2078,2030.7,2030.4,0.98517]
[1741540996944,3.2078,2030.6,2030.3,0.98521]
[1741540997144,7.72495999,2030.8,2030.2,3.2078]
[1741540997353,0.00738316,2031.0,2030.0,0.88884]
[1741540997354,0.00738316,2031.0,2030.6,3.2078]
[1741540997543,3.16e-06,2031.0,2030.9,0.98496]
[1741540997745,3.16e-06,2031.0,2030.9,8.51776]
[1741540997946,3.16e-06,2031.0,2030.9,12.51776]
[1741540998653,3.16e-06,2031.0,2030.9,18.85612983]
[1741540998856,3.2078,2031.8,2030.9,17.87116983]
[1741540999057,3.2078,2031.8,2031.7,0.98457]
[1741540999257,3.2078,2031.7,2031.3,3.2078]
[1741540999457,3.2078,2031.8,2031.7,0.98457]
[1741540999850,14.09207636,2032.1,2032.0,0.98442]
[1741541000552,14.09207636,2032.1,2032.0,8.19222]
[1741541000755,10.57644043,2032.3,2032.2,0.98433]
[1741541000955,3.2078,2032.2,2031.8,0.00738316]
[1741541001157,10.57644043,2032.3,2031.8,0.00738316]
[1741541001358,3.2078,2032.2,2032.0,0.9844]
[1741541001555,3.2078,2032.2,2031.9,0.98446]
[1741541001758,3.2078,2032.0,2031.8,0.00738316]
[1741541002054,3.2078,2032.0,2031.1,0.4928]
[1741541002260,3.2078,2031.8,2031.1,2.46216]
[1741541002559,0.98468,2031.5,2031.0,0.4928]
[1741541002859,3.2078,2031.5,2031.0,1.47768]
[1741541003062,4.19263,2031.2,2030.9,3.2078]
[1741541003256,3.2078,2031.2,2031.1,0.98486]
[1741541003462,4.19265,2031.2,2031.0,0.00738316]
[1741541003664,7.40046,2031.1,2031.0,0.00738316]
[1741541003859,9.87481684,2031.1,2030.6,3.2078]
[1741541004157,3.2078,2031.0,2030.6,3.2078]
[1741541004362,9.87481684,2031.1,2030.6,3.2078]
[1741541004661,4.19273,2031.0,2030.6,3.2078]
[1741541004857,3.2078,2031.0,2030.6,3.2078]
[1741541005058,3.2078,2030.9,2030.6,0.00738316]
[1741541005560,3.2078,2031.1,2030.7,0.4928]
[1741541005856,7.40048,2031.1,2030.6,3.21518316]
[1741541006056,0.00738316,2031.4,2030.6,6.16418316]
[1741541006258,3.21518316,2031.4,2031.3,0.98476]
[1741541006462,0.00738316,2031.4,2031.3,0.98476]
[1741541007254,0.00738316,2031.4,2031.2,0.98478]
[1741541007460,0.00738316,2031.4,2031.3,0.98476]
[1741541007657,9.8822,2031.4,2031.0,2.949]
[1741541007860,3.2078,2031.3,2031.0,0.98489]
[1741541008163,3.2078,2031.1,2030.6,0.00738316]
[1741541008458,3.2078,2031.1,2030.7,0.98503]
[1741541008660,4.19274,2031.0,2030.6,0.00738316]
[1741541008850,3.2078,2031.0,2030.6,0.00738316]
[1741541009055,0.00738316,2031.4,2030.6,0.00738316]
[1741541009056,3.95359682,2031.4,2031.2,0.98481]
[1741541009255,3.2078,2031.3,2031.1,0.98483]
[1741541009460,7.41281366,2031.4,2031.3,0.98476]
[1741541009657,3.95359682,2031.4,2031.3,0.98476]
[1741541009855,0.74579682,2031.4,2031.3,4.98476]
[1741541010054,7.41281366,2031.4,2030.9,7.4388]
[1741541010355,3.2078,2031.1,2030.9,0.98493]
[1741541010549,0.98483,2031.2,2030.9,0.98493]
[1741541010750,3.2078,2031.1,2030.9,0.98493]
[1741541010949,4.19273,2031.0,2030.7,0.98504]
[1741541011154,7.40053,2031.0,2030.7,0.98504]
[1741541011360,7.40053,2031.0,2030.6,0.00738316]
[1741541011361,3.2078,2030.9,2030.8,0.98501]
[1741541011560,3.2078,2030.9,2030.7,0.98501]
[1741541011958,3.2078,2030.9,2030.8,0.98501]
[1741541012158,3.2078,2030.9,2030.7,0.98503]
[1741541012458,3.2078,2030.9,2030.6,0.00738316]
[1741541012765,3.2078,2030.8,2030.6,0.99247316]
[1741541012965,3.2078,2030.8,2030.1,22.5868]
[1741541012966,3.2078,2030.7,2030.1,22.5868]
[1741541013258,6.4156,2030.7,2030.1,25.05008]
[1741541013459,3.2078,2030.6,2030.2,0.9853]
[1741541013664,3.2078,2030.6,2030.3,0.98522]
[1741541013870,3.2078,2030.6,2030.1,22.5868]
[1741541013871,3.2078,2030.4,2030.1,22.094]
[1741541014177,3.2078,2030.5,2030.1,22.094]
[1741541014361,10.58732602,2030.8,2030.1,22.5868]
[1741541014561,6.4156,2030.7,2030.1,22.094]
[1741541014761,0.98512,2030.6,2030.1,22.094]
[1741541014961,3.2078,2030.6,2030.1,22.094]
[1741541015161,3.2078,2030.6,2030.5,0.98515]
[1741541015361,6.66701684,2030.6,2030.1,22.094]
[1741541015667,4.19297,2030.5,2030.1,23.07933]
[1741541015860,3.2078,2030.4,2030.2,0.98529]
[1741541016060,6.4156,2030.4,2030.2,0.98529]
[1741541016264,3.2078,2030.3,2029.9,3.2078]
[1741541016566,3.2078,2030.3,2029.6,2.46393]
[1741541016766,3.2078,2030.3,2029.0,0.98586]
[1741541016767,3.2078,2029.7,2029.0,0.98586]
[1741541016961,3.2078,2029.3,2029.0,0.98588]
[1741541017162,3.2078,2029.3,2028.9,0.36674906]
[1741541017359,3.2078,2029.0,2028.9,0.36674906]
[1741541017566,3.2078,2029.0,2028.6,0.4928]
[1741541017758,3.2078,2029.0,2028.9,0.98593]
[1741541017956,3.2078,2028.9,2028.8,0.98598]
[1741541018161,0.00738316,2029.2,2028.5,2.46523]
[1741541018467,0.00738316,2029.2,2028.4,29.7136]
[1741541018468,3.2078,2029.1,2028.4,29.7016]
[1741541018665,3.2078,2028.8,2028.0,14.80465]
[1741541018870,3.2078,2028.8,2028.7,0.98603]
[1741541019170,3.21518316,2029.2,2028.4,2.46532]
[1741541019371,3.2078,2029.1,2029.0,0.98588]
[1741541019567,3.2078,2029.1,2028.3,5.67335]
[1741541019773,3.2078,2029.1,2028.3,3.2078]
[1741541019774,3.2078,2029.0,2028.3,3.2078]
[1741541020075,3.2078,2029.0,2028.9,0.98593]
[1741541020271,3.2078,2028.9,2028.3,3.2078]
[1741541020464,3.2078,2028.9,2028.8,0.98598]
[1741541020663,3.2078,2028.9,2028.3,3.2078]
[1741541020866,3.2078,2028.9,2028.8,0.98598]
[1741541021065,3.2078,2028.8,2028.6,0.98607]
[1741541021263,6.4156,2028.8,2028.3,3.2078]
[1741541021469,3.2078,2028.7,2028.5,0.9861]
[1741541021771,3.2078,2028.7,2028.2,4.149]
[1741541021975,3.2078,2028.6,2028.5,0.98612]
[1741541022163,11.32573968,2029.1,2028.3,3.2078]
[1741541022365,6.05771336,2029.1,2029.0,0.98588]
[1741541022564,7.49290208,2029.3,2029.2,0.98578]
[1741541022771,4.86821208,2029.3,2029.2,8.19358]
[1741541022973,3.2078,2030.3,2029.2,7.7006]
[1741541023169,3.2078,2030.3,2029.4,3.2078]
[1741541023470,3.2078,2030.2,2029.4,3.2078]
[1741541023669,6.66701684,2030.2,2029.4,3.2078]
[1741541023871,3.2078,2030.1,2029.6,0.00738316]
[1741541024060,3.21518316,2030.0,2029.6,0.00738316]
[1741541024266,0.98567,2029.5,2029.1,0.98582]
[1741541024467,3.2078,2029.6,2029.2,0.98575]
[1741541024667,3.2078,2029.6,2029.3,0.98572]
[1741541024972,3.2078,2029.5,2028.9,22.108]
[1741541025166,3.2078,2029.1,2029.0,0.98588]
[1741541025370,0.98571,2029.4,2029.0,0.98585]
[1741541025371,4.19351,2029.4,2029.0,0.98585]
[1741541025571,3.2078,2029.3,2029.0,0.98585]
[1741541025871,3.2078,2029.2,2028.9,22.108]
[1741541026071,6.4156,2029.2,2029.0,0.98584]
[1741541026271,6.4156,2029.2,2028.9,22.108]
[1741541026578,3.2078,2029.1,2028.9,22.108]
[1741541026777,3.2078,2029.1,2028.7,0.98598]
[1741541026778,4.19365,2029.1,2028.7,0.98598]
[1741541026971,3.2078,2028.9,2028.5,7.3068]
[1741541027275,3.2078,2029.0,2028.2,3.2078]
[1741541027276,6.4156,2029.0,2028.2,3.2078]
[1741541027472,6.42298316,2028.9,2028.2,3.7014]
[1741541027671,6.42298316,2028.9,2028.8,0.98598]
[1741541027877,3.21518316,2028.9,2028.2,6.16702]
[1741541028068,3.21518316,2028.9,2028.8,0.98598]
[1741541028269,0.00738316,2028.9,2028.8,0.98598]
[1741541028877,0.00738316,2028.9,2028.5,3.2078]
[1741541029266,0.00738316,2028.9,2028.8,0.98598]
[1741541029973,3.21518316,2028.9,2028.5,3.2078]
[1741541030178,3.21518316,2028.9,2028.8,0.98598]
[1741541030475,3.2078,2028.8,2028.7,0.98603]
[1741541030676,3.2078,2028.8,2028.4,2.46539]
[1741541030677,3.2078,2028.8,2028.3,4.039]
[1741541030874,4.19385,2028.7,2028.3,5.02518]
[1741541031073,3.2078,2028.7,2028.3,4.039]
[1741541031473,3.2078,2028.6,2028.3,4.039]
[1741541031668,3.2078,2028.6,2028.5,0.98612]
[1741541031979,3.21518316,2028.9,2028.8,0.98598]
[1741541032185,6.66701684,2028.9,2028.3,6.50451]
[1741541032378,3.2078,2028.8,2028.7,0.98603]
[1741541032579,3.21518316,2028.9,2028.8,0.98598]
[1741541033180,0.00738316,2028.9,2028.8,0.98598]
[1741541034387,0.00738316,2028.9,2028.4,2.949]
[1741541034388,3.21518316,2028.9,2028.4,2.949]
[1741541034584,3.2078,2028.8,2028.7,0.98601]
[1741541035381,3.2078,2028.8,2028.7,0.98603]
[1741541035382,6.65963368,2028.8,2028.7,0.98603]
[1741541035585,6.65963368,2028.8,2028.4,2.949]
[1741541035784,3.2078,2028.7,2028.5,0.98609]
[1741541035984,4.19384,2028.7,2028.4,0.98615]
[1741541036191,3.2078,2028.6,2028.5,0.98612]
[1741541036381,0.00738316,2028.9,2028.8,0.98598]
[1741541036584,3.45921684,2028.9,2028.8,0.98598]
[1741541036883,0.00738316,2028.9,2028.8,0.98598]
[1741541037688,3.21518316,2028.9,2028.8,0.98598]
[1741541038089,6.66701684,2028.9,2028.5,6.1568]
[1741541038285,3.2078,2028.8,2028.7,0.98601]
[1741541038480,0.98615,2028.5,2028.3,0.4936]
[1741541038680,3.2078,2028.6,2027.8,0.4936]
[1741541038982,3.975,2028.5,2027.2,3.2078]
[1741541039187,0.98649,2027.8,2027.4,0.98664]
[1741541039388,3.45183368,2027.8,2027.2,3.7014]
[1741541039590,3.2078,2027.7,2027.2,3.7014]
[1741541039884,3.2078,2027.7,2026.9,0.98686]
[1741541039885,3.2078,2027.4,2026.9,0.98686]
[1741541040083,3.2078,2027.4,2027.0,0.98684]
[1741541040285,3.2078,2027.3,2026.9,0.98686]
[1741541040591,3.2078,2027.3,2026.9,0.9869]
[1741541040789,3.2078,2027.3,2026.8,4.19474]
[1741541040790,3.2078,2027.2,2026.8,4.19474]
[1741541040983,3.2078,2027.2,2026.8,3.2078]
[1741541041189,3.21518316,2027.8,2026.8,3.2078]
[1741541041384,0.00738316,2027.8,2027.7,0.98651]
[1741541041689,0.98619,2028.4,2027.9,0.98637]
[1741541041890,3.45183368,2028.4,2027.5,3.97138316]
[1741541042094,0.98656,2027.6,2027.5,0.00738316]
[1741541042390,12.10739,2027.7,2026.4,0.4936]
[1741541042591,12.10739,2027.7,2025.9,25.3298]
[1741541042592,3.2078,2026.5,2025.9,25.3298]
[1741541042888,3.2078,2026.9,2026.0,0.4936]
[1741541043088,6.43956,2027.5,2027.2,0.98673]
[1741541043089,3.2078,2027.3,2027.2,0.98673]
[1741541043389,3.2078,2027.4,2027.1,0.4936]
[1741541043596,3.22903368,2027.4,2026.8,3.2078]
[1741541043887,3.22903368,2027.4,2026.1,0.98727]
[1741541043888,0.98707,2026.6,2026.1,0.98727]
[1741541044203,3.2078,2026.2,2025.8,0.4936]
[1741541044389,3.2078,2026.2,2025.7,0.4936]
[1741541044390,3.2078,2026.5,2025.7,0.4936]
[1741541044688,4.015,2027.1,2025.7,0.4936]
[1741541044689,3.2078,2026.1,2025.7,0.4936]
[1741541044894,3.2078,2026.1,2026.0,0.98734]
[1741541045394,0.00740302,2026.2,2026.1,0.98729]
[1741541046088,3.2078,2027.1,2026.2,2.46811]
[1741541046389,0.98692,2026.9,2026.4,0.98712]
[1741541046593,3.2078,2026.8,2026.1,3.2078]
[1741541046796,3.2078,2026.8,2026.5,0.98707]
[1741541046983,3.2078,2027.1,2026.2,2.46811]
[1741541047187,0.00740302,2026.9,2026.4,0.00740302]
[1741541047388,3.2078,2026.8,2026.4,0.00740302]
[1741541047594,3.2078,2026.5,2026.4,0.00740302]
[1741541047796,4.1949,2026.5,2026.4,0.00740302]
[1741541047995,3.2078,2026.5,2026.4,0.00740302]
[1741541048291,3.2078,2026.8,2026.4,0.00740302]
[1741541048494,0.98742,2025.9,2025.4,0.98761]
[1741541048692,0.98742,2025.9,2025.2,0.4936]
[1741541048693,3.2078,2025.9,2025.2,0.4936]
[1741541048886,3.2078,2025.8,2025.2,0.4936]
[1741541049092,6.4156,2025.9,2025.8,0.98744]
[1741541049290,3.2078,2026.2,2025.2,11.06264986]
[1741541049598,0.00740302,2025.9,2025.3,22.133]
[1741541050000,3.2078,2025.8,2025.6,0.98749]
[1741541050195,3.2078,2025.8,2025.3,22.133]
[1741541050396,3.21520302,2025.9,2025.8,0.98744]
[1741541050593,0.00740302,2025.9,2025.8,0.98744]
[1741541050897,3.2078,2026.3,2025.8,4.0]
[1741541051092,3.2078,2026.2,2025.5,4.023]
[1741541051296,6.4156,2026.2,2025.4,11.6964]
[1741541051488,3.2078,2026.1,2025.4,14.9042]
[1741541051702,3.2078,2026.2,2026.1,0.98729]
[1741541052292,0.00740302,2026.4,2025.8,3.2078]
[1741541052490,0.00740302,2026.4,2026.3,0.98719]
[1741541052690,2.38113137,2027.1,2027.0,0.98685]
[1741541052896,5.84605063,2027.4,2027.0,7.2338]
[1741541053194,5.84605063,2027.4,2027.3,0.98671]
[1741541053195,2.63825063,2027.4,2027.3,0.98671]
[1741541053500,2.63825063,2027.4,2027.3,4.19451]
[1741541053699,1.55183063,2027.4,2027.3,8.19451]
[1741541054199,3.2078,2029.0,2027.3,41.51942248]
[1741541054497,13.55405727,2030.2,2028.4,3.2078]
[1741541054498,3.2078,2029.6,2028.4,3.2078]
[1741541054697,3.2078,2029.6,2028.5,4.036]
[1741541054892,3.2078,2029.5,2028.5,10.57810442]
[1741541055093,3.2078,2029.5,2028.7,5.67286]
[1741541055294,3.2078,2029.4,2028.8,0.00740302]
[1741541055497,0.00740302,2029.3,2029.2,0.98578]
[1741541055687,0.00740302,2029.3,2029.2,5.01478]
[1741541056096,0.00740302,2029.3,2029.2,9.50758]
[1741541056300,0.00740302,2029.3,2029.2,5.01478]
[1741541056494,13.77685727,2030.2,2029.3,2.46434]
[1741541056795,3.2078,2030.1,2029.7,0.98552]
[1741541056993,3.2078,2030.1,2029.7,4.025]
[1741541057193,3.2078,2030.0,2029.7,4.025]
[1741541057392,3.2078,2030.4,2029.7,4.025]
[1741541057892,3.21520302,2030.3,2029.8,0.00740302]
[1741541058203,0.00740302,2030.3,2030.1,0.98533]
[1741541058393,0.00740302,2030.3,2030.2,0.9853]
[1741541058599,0.00740302,2030.3,2030.2,4.9893]
[1741541058802,3.21520302,2030.3,2030.2,4.004]
[1741541059397,3.21520302,2030.3,2030.2,4.9893]
[1741541059398,0.00740302,2030.3,2030.2,4.9893]
[1741541059803,0.00740302,2030.3,2030.2,4.004]
[1741541060095,0.00740302,2030.3,2030.2,4.9893]
[1741541060301,3.21520302,2030.3,2029.8,0.00740302]
[1741541060492,6.4156,2030.2,2029.8,0.00740302]
[1741541060694,3.2078,2030.2,2029.8,0.00740302]
[1741541060998,3.2078,2030.1,2029.8,0.00740302]
[1741541061204,3.2078,2030.2,2029.8,0.00740302]
[1741541061498,3.2078,2030.2,2030.0,0.98537]
[1741541061698,3.2078,2030.1,2029.8,0.00740302]
[1741541061901,3.2078,2030.2,2029.9,0.98544]
[1741541062205,3.2078,2030.2,2029.8,0.00740302]
[1741541062206,3.2078,2030.0,2029.8,0.00740302]
[1741541062497,0.98544,2029.9,2029.8,0.00740302]
[1741541062695,4.19324,2029.9,2029.8,0.00740302]
[1741541063198,3.2078,2029.9,2029.8,0.00740302]
[1741541063706,4.19324,2029.9,2029.8,0.00740302]
[1741541063890,8.19324,2029.9,2029.2,0.4928]
[1741541064089,3.2078,2029.5,2028.9,22.121]
[1741541064298,3.2078,2029.5,2029.1,0.98578]
[1741541064502,3.2078,2029.4,2028.9,22.121]
[1741541064703,3.2078,2029.4,2029.0,0.98584]
[1741541064901,3.2078,2029.3,2028.9,22.121]
[1741541065097,4.19332,2029.8,2029.4,0.98566]
[1741541065404,3.2078,2029.5,2029.4,0.98569]
[1741541065697,3.2078,2029.5,2029.1,3.94]
[1741541065698,3.2078,2029.7,2029.6,0.98559]
[1741541065896,3.2078,2030.0,2029.1,3.94]
[1741541066103,3.2078,2030.0,2029.9,0.98544]
[1741541066912,3.21520302,2030.3,2029.6,6.38989]
[1741541067204,3.21520302,2030.3,2030.2,0.9853]
[1741541067395,3.21520302,2030.3,2029.8,2.46368]
[1741541067598,3.2078,2030.2,2030.1,0.98535]
[1741541068006,3.2078,2030.2,2029.8,0.00740302]
[1741541068302,6.4156,2030.1,2029.8,0.00740302]
[1741541068509,3.2078,2030.1,2029.8,0.00740302]
[1741541068700,3.2078,2030.0,2029.8,0.00740302]
[1741541069209,3.2078,2029.9,2029.8,0.99289302]
[1741541069409,4.19321,2030.0,2029.8,0.00740302]
[1741541069707,0.98544,2029.9,2029.8,0.00740302]
[1741541069905,7.92,2030.0,2029.1,0.4928]
[1741541070102,0.98565,2029.5,2029.1,0.98582]
[1741541070409,0.98565,2029.5,2029.1,0.9858]
[1741541070613,0.98576,2029.3,2028.9,22.121]
[1741541070795,4.19347,2029.5,2028.9,22.121]
[1741541071001,3.2078,2029.5,2028.9,22.121]
[1741541071203,3.2078,2029.3,2029.1,0.98581]
[1741541071503,3.2078,2029.3,2028.2,32.17916]
[1741541071699,4.19377,2028.9,2028.2,32.17916]
[1741541071898,3.2078,2028.6,2028.5,0.98609]
[1741541072106,3.2078,2028.6,2028.2,29.7136]
[1741541072107,3.2078,2028.6,2028.2,26.013]
[1741541072308,3.2078,2028.6,2028.5,0.98612]
[1741541072506,3.2078,2028.5,2028.4,0.98616]
[1741541072906,3.2078,2028.5,2028.2,26.013]
[1741541072907,2.18421,2028.5,2028.3,0.00740302]
[1741541073117,2.18421,2028.4,2028.3,0.99362302]
[1741541073411,2.18421,2028.5,2028.3,0.99360302]
[1741541073709,2.18421,2028.5,2027.6,0.4936]
[1741541074012,0.98661,2027.6,2027.2,0.98673]
[1741541074223,3.2078,2027.4,2027.2,0.98673]
[1741541074414,3.2078,2027.4,2027.3,0.98671]
[1741541074606,2.18421,2027.3,2027.2,0.98676]
[1741541074905,2.18421,2027.6,2027.5,0.98658]
[1741541075098,2.18421,2027.6,2027.0,3.866]
[1741541075304,2.18421,2027.5,2027.0,3.866]
[1741541075501,2.18421,2027.6,2027.3,0.98666]
[1741541075903,2.18421,2027.5,2027.4,0.98666]
[1741541076102,2.18421,2027.6,2027.4,0.98666]
[1741541076306,0.98664,2027.5,2027.1,0.98678]
[1741541076504,0.98664,2027.5,2027.0,0.98682]
[1741541076505,4.19449,2027.4,2027.0,0.98682]
[1741541076711,5.39201,2027.4,2027.0,0.98682]
[1741541076912,2.18421,2027.3,2027.1,0.9868]
[1741541077100,2.18421,2027.3,2027.2,0.98676]
[1741541077301,3.21520302,2027.8,2026.8,9.53769051]
[1741541077502,2.18421,2027.7,2026.9,3.845]
[1741541077710,2.18421,2027.7,2027.0,8.74359563]
[1741541077907,2.18421,2027.7,2027.6,0.98656]
[1741541078103,0.00740302,2027.8,2027.7,0.98651]
[1741541078511,0.00740302,2027.8,2027.7,4.98651]
[1741541078713,3.2078,2028.6,2027.9,2.46604]
[1741541079014,3.2078,2028.2,2028.0,0.98634]
[1741541079209,3.2078,2028.2,2028.1,0.98632]
[1741541079411,3.2078,2028.5,2028.3,0.9862]
[1741541079605,3.2078,2028.5,2028.0,3.2078]
[1741541079808,5.39201,2028.5,2028.4,0.98617]
[1741541080209,2.18421,2028.5,2028.4,0.98617]
[1741541080417,0.00740302,2028.6,2028.5,0.98612]
[1741541080611,2.19161302,2028.6,2028.5,0.98612]
[1741541080813,0.00740302,2028.6,2028.5,0.98612]
[1741541081110,2.19161302,2028.6,2028.0,3.2078]
[1741541081317,5.39201,2028.5,2028.0,3.2078]
[1741541081817,0.00740302,2028.6,2028.0,3.2078]
[1741541081818,3.02e-06,2028.6,2028.5,0.98612]
[1741541082020,6.25487014,2028.8,2028.7,0.98603]
[1741541082321,5.277,2029.4,2028.7,4.0]
[1741541082518,2.18421,2029.3,2028.6,2.46509]
[1741541082722,3.2078,2029.3,2029.1,0.98583]
[1741541082918,2.18421,2029.2,2028.4,5.67321]
[1741541083113,3.2078,2028.9,2028.8,0.98598]
[1741541083511,0.00740302,2029.4,2028.8,7.79]
[1741541083710,2.18421,2029.4,2029.3,0.98573]
[1741541084017,2.18421,2029.3,2028.8,3.79]
[1741541084320,2.18421,2029.5,2029.4,0.98566]
[1741541084520,3.2078,2029.6,2029.5,0.98564]
[1741541084917,3.2078,2029.6,2029.2,3.2078]
[1741541085118,2.18421,2029.5,2029.4,0.98568]
[1741541085921,0.00740302,2029.8,2029.2,3.2078]
[1741541086218,2.18421,2029.7,2029.6,0.98559]
[1741541086923,0.00740302,2029.8,2029.6,0.98559]
[1741541087122,2.18421,2029.7,2029.6,0.98559]
[1741541087628,2.18421,2029.7,2029.3,3.77]
[1741541087920,0.00740302,2029.8,2029.7,0.98554]
[1741541088423,2.19161302,2029.8,2029.7,0.98554]
[1741541089237,2.19161302,2029.8,2029.3,3.77]
[1741541089434,3.2078,2029.5,2029.3,0.98571]
[1741541089631,3.2078,2029.5,2029.2,3.2078]
[1741541089838,3.2078,2029.5,2028.9,0.4936]
[1741541089839,2.18421,2029.4,2028.9,0.4936]
[1741541090032,2.18421,2029.4,2029.1,0.98581]
[1741541090336,2.18421,2029.3,2029.2,0.98578]
[1741541090639,2.18421,2029.4,2029.2,0.98575]
[1741541090841,2.18421,2029.4,2029.3,0.98573]
[1741541091136,2.18421,2029.3,2029.2,0.98575]
[1741541091335,2.18421,2029.4,2028.7,4.2296]
[1741541091640,3.2078,2029.2,2028.7,4.2296]
[1741541091838,3.2078,2029.2,2028.7,0.4936]
[1741541092140,2.18421,2029.1,2028.7,0.4936]
[1741541092439,3.2078,2029.5,2028.8,2.46495]
[1741541092733,2.18421,2029.4,2029.2,0.98575]
[1741541093141,2.18421,2029.3,2029.2,0.98575]
[1741541093338,3.2078,2029.5,2029.1,2.46458]
[1741541093532,3.2078,2029.5,2029.4,0.98569]
[1741541093733,3.21520302,2029.8,2029.5,0.98562]
[1741541093942,2.18421,2029.7,2029.1,3.703]
[1741541094136,3.16976,2029.7,2029.1,3.703]
[1741541094338,2.18421,2029.6,2029.2,0.98576]
[1741541094636,3.2078,2029.5,2029.1,4.6888]
[1741541094842,2.18421,2029.6,2029.1,3.703]
[1741541095041,2.18421,2029.6,2029.1,6.9108]
[1741541095244,2.18421,2029.5,2029.3,0.98572]
[1741541095543,2.18421,2029.7,2029.5,0.9856]
[1741541095731,2.18421,2029.7,2029.6,0.98559]
[1741541095931,2.18421,2029.7,2029.3,2.95711]
[1741541096144,2.18421,2029.6,2029.5,0.98562]
[1741541096438,2.18421,2029.7,2029.5,0.98563]
[1741541096632,2.18421,2029.7,2029.6,0.98559]
[1741541096839,3.21520302,2029.8,2029.6,0.98559]
[1741541097038,2.18421,2029.7,2029.6,0.98559]
[1741541097344,2.18421,2029.7,2029.4,0.4928]
[1741541097548,2.18421,2029.6,2029.5,0.98564]
[1741541097733,2.18421,2029.7,2029.4,0.4928]
[1741541097938,3.2078,2029.5,2029.2,0.4928]
[1741541098141,3.2078,2029.5,2029.1,7.4036]
[1741541098438,2.18421,2029.4,2029.1,7.4036]
[1741541098635,2.18421,2029.4,2029.2,0.98574]
[1741541098945,2.18421,2029.3,2029.0,0.4928]
[1741541099144,2.18421,2029.3,2029.0,0.98587]
[1741541099341,2.18421,2029.3,2028.9,3.645]
[1741541099342,2.18421,2029.2,2028.9,3.645]
[1741541099547,2.18421,2029.3,2028.9,3.645]
[1741541099743,2.18421,2029.3,2029.2,0.98578]
[1741541099943,3.2078,2029.7,2029.1,2.46459]
[1741541100145,5.39201,2029.7,2029.5,0.98562]
[1741541100344,2.18421,2029.6,2029.1,3.2078]
[1741541100547,2.18421,2029.6,2029.0,0.4936]
[1741541100753,3.2078,2029.4,2029.0,0.4936]
[1741541101052,3.2078,2029.4,2029.2,0.98577]
[1741541101247,3.2078,2029.4,2028.6,5.77693682]
[1741541101248,1.19825,2029.3,2028.6,0.00740302]
[1741541101548,3.2078,2029.0,2028.6,0.00740302]
[1741541101948,1.19825,2028.9,2028.6,0.00740302]
[1741541102146,3.2078,2028.7,2028.6,0.00740302]
[1741541102341,4.19383,2028.7,2028.6,0.00740302]
[1741541102547,4.40605,2028.7,2028.6,0.00740302]
[1741541102754,0.98616,2028.5,2028.2,3.639]
[1741541102941,1.19825,2028.6,2028.2,3.639]
[1741541103147,3.2078,2028.7,2028.6,0.98607]
[1741541103448,3.2078,2029.0,2028.3,0.4936]
[1741541103648,1.19825,2029.5,2028.5,3.2078]
[1741541103853,1.19825,2029.5,2029.4,0.98569]
[1741541104051,0.00740302,2029.2,2029.1,3.632]
[1741541104252,0.00740302,2029.2,2028.8,0.00740302]
[1741541104455,1.19825,2029.1,2029.0,0.98588]
[1741541104657,0.00740302,2029.2,2029.1,0.98583]
[1741541104854,3.02e-06,2029.2,2029.1,0.98583]
[1741541105157,3.02e-06,2029.2,2029.1,7.76007734]
[1741541105354,3.2078,2029.7,2029.2,2.46446]
[1741541105552,1.19825,2029.6,2029.5,0.98564]
[1741541106551,2.46422,2029.4,2028.3,3.7014]
[1741541106751,3.2078,2028.4,2027.7,5.67403]
[1741541106951,3.2078,2028.4,2027.7,3.2078]
[1741541107149,3.2078,2028.7,2027.9,2.46604]
[1741541107454,0.98615,2028.5,2027.8,6.78494559]
[1741541107763,3.21520302,2028.4,2028.2,0.98626]
[1741541107953,3.21520302,2028.4,2028.1,0.98628]
[1741541108152,3.21520302,2028.4,2028.3,0.98622]
[1741541108657,3.21520302,2028.4,2027.9,0.00740302]
[1741541108857,3.21520302,2028.4,2028.3,0.98622]
[1741541109058,3.21520302,2028.4,2027.9,0.00740302]
[1741541109261,3.21520302,2028.4,2028.3,0.98622]
[1741541109461,0.00740302,2028.4,2028.3,0.98622]
[1741541110153,12.28950981,2029.1,2028.3,10.11245]
[1741541110358,12.28950981,2029.1,2028.3,6.8548]
[1741541110561,12.28950981,2029.1,2029.0,0.98588]
[1741541110951,12.28950981,2029.1,2029.0,4.98588]
[1741541110952,5.25208632,2029.1,2029.0,4.98588]
[1741541111150,3.2078,2029.5,2029.4,0.98569]
[1741541111652,0.00740302,2029.7,2029.6,0.98559]
[1741541113458,3.02e-06,2029.7,2029.6,0.98559]
[1741541113663,7.35255725,2030.4,2029.6,4.0]
[1741541113856,7.35255725,2030.4,2030.3,0.98525]
[1741541114051,3.83136578,2030.4,2030.3,0.98525]
[1741541114754,7.83925454,2030.8,2030.7,0.98505]
[1741541115568,6.70339454,2030.8,2030.7,4.19285]
[1741541116065,4.13271454,2030.8,2030.7,8.68565]
[1741541116259,0.00740302,2031.0,2030.9,0.98496]
[1741541116459,12.12769921,2031.1,2031.0,1.47771]
[1741541116667,12.87785028,2031.6,2031.4,0.98469]
[1741541116855,12.87785028,2031.6,2031.4,3.595]
[1741541116856,16.08565028,2031.6,2031.4,3.595]
[1741541117060,16.08565028,2031.6,2031.4,4.57968]
[1741541117265,16.08565028,2031.6,2031.5,0.98467]